Workbook

Sheet DISTRITO (hidden)
A3: DEP | B3: AMAZONAS
A4: PROV | B4: CHACHAPOYAS
A5: DIST | B5: CHACHAPOYAS
A6: DIST | B6: ASUNCION
A7: DIST | B7: BALSAS
A8: DIST | B8: CHETO
A9: DIST | B9: CHILIQUIN
A10: DIST | B10: CHUQUIBAMBA
A11: DIST | B11: GRANADA
A12: DIST | B12: HUANCAS
A13: DIST | B13: LA JALCA
A14: DIST | B14: LEIMEBAMBA
A15: DIST | B15: LEVANTO
A16: DIST | B16: MAGDALENA
A17: DIST | B17: MARISCAL CASTILLA
A18: DIST | B18: MOLINOPAMPA
A19: DIST | B19: MONTEVIDEO
A20: DIST | B20: OLLEROS
A21: DIST | B21: QUINJALCA
A22: DIST | B22: SAN FRANCISCO DE DAGUAS
A23: DIST | B23: SAN ISIDRO DE MAINO
A24: DIST | B24: SOLOCO
A25: DIST | B25: SONCHE
A26: PROV | B26: BAGUA
A27: DIST | B27: BAGUA
A28: DIST | B28: ARAMANGO
A29: DIST | B29: COPALLIN
A30: DIST | B30: EL PARCO
A31: DIST | B31: IMAZA
A32: DIST | B32: LA PECA
A33: PROV | B33: BONGARA
A34: DIST | B34: JUMBILLA
A35: DIST | B35: CHISQUILLA
A36: DIST | B36: CHURUJA
A37: DIST | B37: COROSHA
A38: DIST | B38: CUISPES
A39: DIST | B39: FLORIDA
A40: DIST | B40: JAZAN
A41: DIST | B41: RECTA
A42: DIST | B42: SAN CARLOS
A43: DIST | B43: SHIPASBAMBA
A44: DIST | B44: VALERA
A45: DIST | B45: YAMBRASBAMBA
A46: PROV | B46: CONDORCANQUI
A47: DIST | B47: NIEVA
A48: DIST | B48: EL CENEPA
A49: DIST | B49: RIO SANTIAGO
A50: PROV | B50: LUYA
A51: DIST | B51: LAMUD
A52: DIST | B52: CAMPORREDONDO
A53: DIST | B53: COCABAMBA
A54: DIST | B54: COLCAMAR
A55: DIST | B55: CONILA
A56: DIST | B56: INGUILPATA
A57: DIST | B57: LONGUITA
A58: DIST | B58: LONYA CHICO
A59: DIST | B59: LUYA
A60: DIST | B60: LUYA VIEJO
A61: DIST | B61: MARIA
A62: DIST | B62: OCALLI
A63: DIST | B63: OCUMAL
A64: DIST | B64: PISUQUIA
A65: DIST | B65: PROVIDENCIA
A66: DIST | B66: SAN CRISTOBAL
A67: DIST | B67: SAN FRANCISCO DEL YESO
A68: DIST | B68: SAN JERONIMO
A69: DIST | B69: SAN JUAN DE LOPECANCHA
A70: DIST | B70: SANTA CATALINA
A71: DIST | B71: SANTO TOMAS
A72: DIST | B72: TINGO
A73: DIST | B73: TRITA
A74: PROV | B74: RODRIGUEZ DE MENDOZA
A75: DIST | B75: SAN NICOLAS
A76: DIST | B76: CHIRIMOTO
A77: DIST | B77: COCHAMAL
A78: DIST | B78: HUAMBO
A79: DIST | B79: LIMABAMBA
A80: DIST | B80: LONGAR
A81: DIST | B81: MARISCAL BENAVIDES
A82: DIST | B82: MILPUC
A83: DIST | B83: OMIA
A84: DIST | B84: SANTA ROSA
A85: DIST | B85: TOTORA
A86: DIST | B86: VISTA ALEGRE
A87: PROV | B87: UTCUBAMBA
A88: DIST | B88: BAGUA GRANDE
A89: DIST | B89: CAJARURO
A90: DIST | B90: CUMBA
A91: DIST | B91: EL MILAGRO
A92: DIST | B92: JAMALCA
A93: DIST | B93: LONYA GRANDE
A94: DIST | B94: YAMON
A95: DEP | B95: ANCASH
A96: PROV | B96: HUARAZ
A97: DIST | B97: HUARAZ
A98: DIST | B98: COCHABAMBA
A99: DIST | B99: COLCABAMBA
A100: DIST | B100: HUANCHAY
A101: DIST | B101: INDEPENDENCIA
A102: DIST | B102: JANGAS
A103: DIST | B103: LA LIBERTAD
A104: DIST | B104: OLLEROS
A105: DIST | B105: PAMPAS
A106: DIST | B106: PARIACOTO
A107: DIST | B107: PIRA
A108: DIST | B108: TARICA
A109: PROV | B109: AIJA
A110: DIST | B110: AIJA
A111: DIST | B111: CORIS
A112: DIST | B112: HUACLLAN
A113: DIST | B113: LA MERCED
A114: DIST | B114: SUCCHA
A115: PROV | B115: ANTONIO RAYMONDI
A116: DIST | B116: LLAMELLIN
A117: DIST | B117: ACZO
A118: DIST | B118: CHACCHO
A119: DIST | B119: CHINGAS
A120: DIST | B120: MIRGAS
A121: DIST | B121: SAN JUAN DE RONTOY
A122: PROV | B122: ASUNCION
A123: DIST | B123: CHACAS
A124: DIST | B124: ACOCHACA
A125: PROV | B125: BOLOGNESI
A126: DIST | B126: CHIQUIAN
A127: DIST | B127: ABELARDO PARDO LEZAMETA
A128: DIST | B128: ANTONIO RAYMONDI
A129: DIST | B129: AQUIA
A130: DIST | B130: CAJACAY
A131: DIST | B131: CANIS
A132: DIST | B132: COLQUIOC
A133: DIST | B133: HUALLANCA
A134: DIST | B134: HUASTA
A135: DIST | B135: HUAYLLACAYAN
A136: DIST | B136: LA PRIMAVERA
A137: DIST | B137: MANGAS
A138: DIST | B138: PACLLON
A139: DIST | B139: SAN MIGUEL DE CORPANQUI
A140: DIST | B140: TICLLOS
A141: PROV | B141: CARHUAZ
A142: DIST | B142: CARHUAZ
A143: DIST | B143: ACOPAMPA
A144: DIST | B144: AMASHCA
A145: DIST | B145: ANTA
A146: DIST | B146: ATAQUERO
A147: DIST | B147: MARCARA
A148: DIST | B148: PARIAHUANCA
A149: DIST | B149: SAN MIGUEL DE ACO
A150: DIST | B150: SHILLA
A151: DIST | B151: TINCO
A152: DIST | B152: YUNGAR
A153: PROV | B153: CARLOS F. FITZCARRALD
A154: DIST | B154: SAN LUIS
A155: DIST | B155: SAN NICOLAS
A156: DIST | B156: YAUYA
A157: PROV | B157: CASMA
A158: DIST | B158: CASMA
A159: DIST | B159: BUENA VISTA ALTA
A160: DIST | B160: COMANDANTE NOEL
A161: DIST | B161: YAUTAN
A162: PROV | B162: CORONGO
A163: DIST | B163: CORONGO
A164: DIST | B164: ACO
A165: DIST | B165: BAMBAS
A166: DIST | B166: CUSCA
A167: DIST | B167: LA PAMPA
A168: DIST | B168: YANAC
A169: DIST | B169: YUPAN
A170: PROV | B170: HUARI
A171: DIST | B171: HUARI
A172: DIST | B172: ANRA
A173: DIST | B173: CAJAY
A174: DIST | B174: CHAVIN DE HUANTAR
A175: DIST | B175: HUACACHI
A176: DIST | B176: HUACCHIS
A177: DIST | B177: HUACHIS
A178: DIST | B178: HUANTAR
A179: DIST | B179: MASIN
A180: DIST | B180: PAUCAS
A181: DIST | B181: PONTO
A182: DIST | B182: RAHUAPAMPA
A183: DIST | B183: RAPAYAN
A184: DIST | B184: SAN MARCOS
A185: DIST | B185: SAN PEDRO DE CHANA
A186: DIST | B186: UCO
A187: PROV | B187: HUARMEY
A188: DIST | B188: HUARMEY
A189: DIST | B189: COCHAPETI
A190: DIST | B190: CULEBRAS
A191: DIST | B191: HUAYAN
A192: DIST | B192: MALVAS
A193: PROV | B193: HUAYLAS
A194: DIST | B194: CARAZ
A195: DIST | B195: HUALLANCA
A196: DIST | B196: HUATA
A197: DIST | B197: HUAYLAS
A198: DIST | B198: MATO
A199: DIST | B199: PAMPAROMAS
A200: DIST | B200: PUEBLO LIBRE
A201: DIST | B201: SANTA CRUZ
A202: DIST | B202: SANTO TORIBIO
... 1854 more rows

Sheet base (hidden)
B1: NOMBRE
B3: Distrito de | C3: =+'FORMATO INVIERTE.PE 1'!C61:I61 -> PUNO
B4: , Provincia de | C4: =+'FORMATO INVIERTE.PE 1'!C60:I60 -> PUNO
B5: , Departamento de | C5: =+'FORMATO INVIERTE.PE 1'!C59:I59 -> PUNO
B8: =CONCATENATE(B3,C3,IF(C5=0," ",B4),C4,IF(C5=0,"",B5),IF(C5=0,"",C5)) -> Distrito de PUNO, Provincia de PUNO, Departamento de PUNO
B10: PROBLEMAS | C10: =+'FORMATO INVIERTE.PE 1'!F20 -> SECTORIAL PUNO
B11: Probelma Princial
B12: La población de la jurisdicción de la Comisaría PNP | G12: tiene limitado acceso a los servicios policiales
B13: La población de la jurisdicción de la Comisaría PNP | G13: accede a servicios policiales que no cumplen estándares establecidos
B14: =CONCATENATE(B12,C10,G12) -> La población de la jurisdicción de la Comisaría PNP SECTORIAL PUNO tiene limitado acceso a los servicios policiales
B15: =CONCATENATE(B13,C10,G13) -> La población de la jurisdicción de la Comisaría PNP SECTORIAL PUNO accede a servicios policiales que no cumplen estándares establecidos
B17: Primer nivel | I17: Indicador | J17: Unidad de medida | L17: Valor | M17: Medio de Verificación
A18: a | B18: Espacios y ambientes inadecuados e insuficientes para realizar la funicón policial | I18: Ambientes inadecuados | J18: Porcentaje | M18: Inspección Técnica
A19: b | B19: Los equipos y/o unidades vehiculares son inadecuados e insuficientes | I19: Número de ambientes | J19: Unidad | M19: Inventario de la Comisaría
A20: c | B20: Las comunicaciones en la función policial son inadecuadas e insuficientes | I20: Número de Equipos
B27: Segundo nivel | I27: Indicador | J27: Unidad de medida | M27: Medio de Verificación
A28: a | B28: Edificación realizada sin criterio técnico | I28: Ambientes inadecuados | J28: Porcentaje | M28: Inspección Técnica
A29: a | B29: Edificación no cumple con la norma técnica de la PNP | I29: Número de ambientes | J29: Unidad | M29: Inventario de la Comisaría
A30: a | B30: Edificación con pocos ambientes para realizar la función policial | I30: Número de equipos | M30: Entrevista
A31: a | B31: Edificación con pocos ambientes para labores complementarias | I31: Estado de obsolescencia
A32: b | B32: Escasos mobiliario para la labor de prevención | I32: Equipos inadecuados
A33: b | B33: Escasos mobiliario para la labor de investigación | I33: Número de vehículos
A34: b | B34: Equipos en estado de obsolecencia | I34: Porcentaje de uso
A35: b | B35: Equipos no adecuado para la función policial
A36: b | B36: Unidades vehículares con vida útil vencida
A37: b | B37: Pocas unidades vehículares para la jurisdicción policial
A38: c | B38: Equipos de comunicación en mal estado de conservación
A39: c | B39: Equipos de comunicación insuficientes para la función policial
B41: Efectos | I41: Indicador | J41: Unidad de medida | M41: Medio de Verificación
A42: a | B42: Incremento de incidencias delictivas | I42: Victimización | J42: Porcentaje | M42: ENAPRES
A43: b | B43: Baja presencia policial en la jurisdicción | I43: Nivel de cobertura de sectores | M43: Encuesta
A44: c | B44: Baja participación de la población en seguridad ciudadana | I44: Nivel de coordinación con comités | M44: Entrevista
A45: a | B45: Aumento de delitos contra el patrimonio | I45: Percepción de inseguridad
A46: b | B46: Aumento de la percepción de inseguridad
A47: c | B47: población desorganizada ante la presencia delictiva
B48: Baja contribución al Orden Interno y Seguridad Ciudadana
B52: Objetivo Princial
B53: La población de la jurisdicción de la Comisaría PNP | G53: tiene adecuado acceso a los servicios policiales
B54: La población de la jurisdicción de la Comisaría PNP | G54: accede a servicios policiales que cumplen estándares establecidos
B55: =CONCATENATE(B53,C10,G53) -> La población de la jurisdicción de la Comisaría PNP SECTORIAL PUNO tiene adecuado acceso a los servicios policiales
B56: =CONCATENATE(B54,C10,G54) -> La población de la jurisdicción de la Comisaría PNP SECTORIAL PUNO accede a servicios policiales que cumplen estándares establecidos
B58: Primer nivel
B59: Espacios y ambientes adecuados y suficientes para realizar la funicón policial | I59: Indicador | J59: Unidad de medida | L59: Valor | M59: Medio de Verificación
B60: Los equipos y/o unidades vehiculares son adecuados y suficientes | I60: Ambientes adecuados | J60: Porcentaje | M60: Inspección Técnica
B61: Las comunicaciones en la función policial son adecuadas y suficientes | I61: Número de ambientes | J61: Unidad | M61: Inventario de la Comisaría
I62: Número de Equipos
B68: Segundo nivel | I68: Indicador | J68: Unidad de medida | M68: Medio de Verificación
B69: Edificación realizada con criterio técnico | I69: Ambientes adecuados | J69: Porcentaje | M69: Inspección Técnica
B70: Edificación cumple con la norma técnica de la PNP | I70: Número de ambientes | J70: Unidad | M70: Inventario de la Comisaría
B71: Edificación con suficientes ambientes para realizar la función policial | I71: Número de equipos | M71: Entrevista
B72: Edificación con suficientes ambientes para labores complementarias | I72: Estado de conservación
B73: Suficientes equipos y mobiliario para la labor de prevención | I73: Equipos adecuados
B74: Suficientes equipos y mobiliario para la labor de investigación | I74: Número de vehículos
B75: Equipos y mobiliario en buen estado | I75: Porcentaje de uso
B76: Equipos y mobiliario adecuado para la función policial
B77: Unidades vehículares con vida útil adecuada
B78: Suficientes unidades vehículares para la jurisdicción policial
B79: Equipos de comunicación en buen estado de conservación
B80: Equipos de comunicación suficientes para la función policial
I81: Indicador | J81: Unidad de medida | M81: Medio de Verificación
B82: Efectos | I82: Victimización | J82: Porcentaje | M82: ENAPRES
B83: Disminución de incidencias delictivas | I83: Nivel de cobertura de sectores | M83: Encuesta
B84: Mayor presencia policial en la jurisdicción | I84: Nivel de coordinación con comités | M84: Entrevista
B85: Mayor participación de la población en seguridad ciudadana | I85: Percepción de inseguridad
B86: Disminución de delitos contra el patrimonio
B87: Disminución de la percepción de inseguridad
B88: población organizada ante la presencia delictiva
B89: Incremento de la contribución al Orden Interno y Seguridad Ciudadana
B94: I Macro Región Policial Piura-Tumbes
B95: II Macro Región Policial Lambayeque-Cajamarca
B96: III Macro Región Policial La Libertad-Ancash
B97: IV Macro Región Policial Loreto-Amazonas
B98: V Macro Región Policial Huanuco -San Martín- Ucayali
B99: VI Macro Región Policial Junin-Pasco-Huancavelica
B100: VII Macro Región Policial Cusco-Apurimac
B101: VIII Macro Región Policial Ayacucho- Ica
B102: IX Macro Región Policial Arequipa-Moquegua-Tacna
B103: X Macro Región Policial Puno-Madre de Dios
B105: Piura
B106: Tumbes
B107: Lambayeque
B108: Cajamarca
B109: La Libertad
B110: Ancash
B111: Loreto
B112: Lima
B113: Callao
B114: Amazonas
B115: San Martín
B116: Ucayali
B117: Junin
B118: Pasco
B119: Huancavelica
B120: Huánuco
B121: Cusco
B122: Apurimac
B123: Ayacucho
B124: Arequipa
B125: Ica
B126: Moquegua
B127: Tacna
B128: Puno
B129: Madre de Dios

Sheet PROV (hidden)
A2: DEP | B2: AMAZONAS | C2: ANCASH | D2: APURIMAC | E2: AREQUIPA | F2: AREQUIPA_ | G2: AYACUCHO | H2: CAJAMARCA | I2: CAJAMARCA_ | K2: CUSCO | L2: CUSCO_ | M2: HUANCAVELICA | N2: HUANCAVELICA_ | O2: HUANUCO | P2: HUANUCO_ | Q2: ICA | R2: ICA_ | S2: JUNIN | T2: LALIBERTAD | U2: LAMBAYEQUE | V2: LAMBAYEQUE_ | W2: LIMA | X2: LIMA_ | Y2: LORETO | Z2: MADRE DE DIOS | AA2: MOQUEGUA | AB2: PASCO | AC2: PIURA | AD2: PIURA_ | AE2: PUNO | AF2: PUNO_ | AG2: SAN MARTIN | AH2: TACNA | AI2: TACNA_ | AJ2: TUMBES | AK2: TUMBES_ | AL2: UCAYALI
A3: PROV | B3: CHACHAPOYAS | C3: HUARAZ | D3: ABANCAY | E3: AREQUIPA | G3: HUAMANGA | H3: CAJAMARCA | J3: PROVINCIA_CONSTITUCIONAL_DEL_CALLAO | K3: CUSCO | M3: HUANCAVELICA | O3: HUANUCO | Q3: ICA | S3: HUANCAYO | T3: TRUJILLO | U3: CHICLAYO | W3: LIMA | Y3: MAYNAS | Z3: TAMBOPATA | AA3: MARISCAL NIETO | AB3: PASCO | AC3: PIURA | AE3: PUNO | AG3: MOYOBAMBA | AH3: TACNA | AJ3: TUMBES | AL3: CORONELPORTILLO
A4: PROV | B4: BAGUA | C4: AIJA | D4: ANDAHUAYLAS | E4: CAMANA | G4: CANGALLO | H4: CAJABAMBA | K4: ACOMAYO | M4: ACOBAMBA | O4: AMBO | Q4: CHINCHA | S4: CONCEPCION | T4: ASCOPE | U4: FERREÑAFE | W4: BARRANCA | Y4: ALTO AMAZONAS | Z4: MANU | AA4: GENERALSANCHEZCERRO | AB4: DANIELALCIDESCARRION | AC4: AYABACA | AE4: AZANGARO | AG4: BELLAVISTA | AH4: CANDARAVE | AJ4: CONTRALMIRANTEVILLAR | AL4: ATALAYA
A5: PROV | B5: BONGARA | C5: ANTONIORAYMONDI | D5: ANTABAMBA | E5: CARAVELI | G5: HUANCA SANCOS | H5: CELENDIN | K5: ANTA | M5: ANGARAES | O5: DOS DE MAYO | Q5: NAZCA | S5: CHANCHAMAYO | T5: BOLIVAR | U5: LAMBAYEQUE | W5: CAJATAMBO | Y5: LORETO | Z5: TAHUAMANU | AA5: ILO | AB5: OXAPAMPA | AC5: HUANCABAMBA | AE5: CARABAYA | AG5: EL DORADO | AH5: JORGEBASADRE | AJ5: ZARUMILLA | AL5: PADREABAD
A6: PROV | B6: CONDORCANQUI | C6: ASUNCION | D6: AYMARAES | E6: CASTILLA | G6: HUANTA | H6: CHOTA | K6: CALCA | M6: CASTROVIRREYNA | O6: HUACAYBAMBA | Q6: PALPA | S6: JAUJA | T6: CHEPEN | W6: CANTA | Y6: MARISCALRAMONCASTILLA | AC6: MORROPON | AE6: CHUCUITO | AG6: HUALLAGA | AH6: TARATA | AL6: PURUS
A7: PROV | B7: LUYA | C7: BOLOGNESI | D7: COTABAMBAS | E7: CAYLLOMA | G7: LA MAR | H7: CONTUMAZA | K7: CANAS | M7: CHURCAMPA | O7: HUAMALIES | Q7: PISCO | S7: JUNIN | T7: JULCAN | W7: CAÑETE | Y7: REQUENA | AC7: PAITA | AE7: EL COLLAO | AG7: LAMAS
A8: PROV | B8: RODRIGUEZ DE MENDOZA | C8: CARHUAZ | D8: CHINCHEROS | E8: CONDESUYOS | G8: LUCANAS | H8: CUTERVO | K8: CANCHIS | M8: HUAYTARA | O8: LEONCIO PRADO | S8: SATIPO | T8: OTUZCO | W8: HUARAL | Y8: UCAYALI | AC8: SULLANA | AE8: HUANCANE | AG8: MARISCALCACERES
A9: PROV | B9: UTCUBAMBA | C9: CARLOSFITZCARRALD | D9: GRAU | E9: ISLAY | G9: PARINACOCHAS | H9: HUALGAYOC | K9: CHUMBIVILCAS | M9: TAYACAJA | O9: MARAÑON | S9: TARMA | T9: PACASMAYO | W9: HUAROCHIRI | Y9: DATEM DEL MARAÑON | AC9: TALARA | AE9: LAMPA | AG9: PICOTA
A10: DEP | C10: CASMA | E10: LA UNION | G10: PAUCARDELSARASARA | H10: JAEN | K10: ESPINAR | O10: PACHITEA | S10: YAULI | T10: PATAZ | W10: HUAURA | AC10: SECHURA | AE10: MELGAR | AG10: RIOJA
A11: PROV | C11: CORONGO | G11: SUCRE | H11: SANIGNACIO | K11: LACONVENCION | O11: PUERTO INCA | S11: CHUPACA | T11: SANCHEZCARRION | W11: OYON | AE11: MOHO | AG11: SANMARTIN_
A12: PROV | C12: HUARI | G12: VICTOR FAJARDO | H12: SANMARCOS | K12: PARURO | O12: LAURICOCHA | T12: SANTIAGODECHUCO | W12: YAUYOS | AE12: SANANTONIODEPUTINA | AG12: TOCACHE
A13: PROV | C13: HUARMEY | G13: VILCAS HUAMAN | H13: SANMIGUEL | K13: PAUCARTAMBO | O13: YAROWILCA | T13: GRANCHIMU | AE13: SANROMAN
A14: PROV | C14: HUAYLAS | H14: SANPABLO | K14: QUISPICANCHI | T14: VIRU | AE14: SANDIA
A15: PROV | C15: MARISCALLUZURIAGA | H15: SANTACRUZ | K15: URUBAMBA | AE15: YUNGUYO
A16: PROV | C16: OCROS
A17: PROV | C17: PALLASCA
A18: PROV | C18: POMABAMBA
A19: PROV | C19: RECUAY
A20: PROV | C20: SANTA
A21: PROV | C21: SIHUAS
A22: PROV | C22: YUNGAY
A23: PROV
A24: PROV
A25: PROV
A26: PROV
A27: PROV
A28: PROV
A29: PROV
A30: PROV
A31: DEP
A32: PROV
A33: PROV
A34: PROV
A35: PROV
A36: PROV
A37: PROV
A38: PROV
A39: DEP
A40: PROV
A41: PROV
A42: PROV
A43: PROV
A44: PROV
A45: PROV
A46: PROV
A47: PROV
A48: DEP
A49: PROV
A50: PROV
A51: PROV
A52: PROV
A53: PROV
A54: PROV
A55: PROV
A56: PROV
A57: PROV
A58: PROV
A59: PROV
A60: DEP
A61: PROV
A62: PROV
A63: PROV
A64: PROV
A65: PROV
A66: PROV
A67: PROV
A68: PROV
A69: PROV
A70: PROV
A71: PROV
A72: PROV
A73: PROV
A74: DEP
A75: PROV
A76: DEP
A77: PROV
A78: PROV
A79: PROV
A80: PROV
A81: PROV
A82: PROV
A83: PROV
A84: PROV
A85: PROV
A86: PROV
A87: PROV
A88: PROV
A89: PROV
A90: DEP
A91: PROV
A92: PROV
A93: PROV
A94: PROV
A95: PROV
A96: PROV
A97: PROV
A98: DEP
A99: PROV
A100: PROV
A101: PROV
A102: PROV
A103: PROV
A104: PROV
A105: PROV
A106: PROV
A107: PROV
A108: PROV
A109: PROV
A110: DEP
A111: PROV
A112: PROV
A113: PROV
A114: PROV
A115: PROV
A116: DEP
A117: PROV
A118: PROV
A119: PROV
A120: PROV
A121: PROV
A122: PROV
A123: PROV
A124: PROV
A125: PROV
A126: DEP
A127: PROV
A128: PROV
A129: PROV
A130: PROV
A131: PROV
A132: PROV
A133: PROV
A134: PROV
A135: PROV
A136: PROV
A137: PROV
A138: PROV
A139: DEP
A140: PROV
A141: PROV
A142: PROV
A143: DEP
A144: PROV
A145: PROV
A146: PROV
A147: PROV
A148: PROV
A149: PROV
A150: PROV
A151: PROV
A152: PROV
A153: PROV
A154: DEP
A155: PROV
A156: PROV
A157: PROV
A158: DEP
A159: PROV
A160: PROV
A161: PROV
A162: DEP
A163: PROV
A164: PROV
A165: PROV
A166: DEP
A167: PROV
A168: PROV
A169: PROV
A170: PROV
A171: PROV
A172: PROV
A173: PROV
A174: PROV
A175: DEP
A176: PROV
A177: PROV
A178: PROV
A179: PROV
A180: PROV
A181: PROV
A182: PROV
A183: PROV
A184: PROV
A185: PROV
A186: PROV
A187: PROV
A188: PROV
A189: DEP
A190: PROV
A191: PROV
A192: PROV
A193: PROV
A194: PROV
A195: PROV
A196: PROV
A197: PROV
A198: PROV
A199: PROV
A200: DEP
A201: PROV
... 12 more rows

Sheet base1 (hidden)
F7: SI
F9: PORCENTAJE DE COMISARIAS QUE NO CUENTAN CON CAPACIDAD DE OPERACIÓN ADECUADA | M9: =+'FORMATO INVIERTE.PE 1'!F20 -> SECTORIAL PUNO
B11: TIPO DE COMISARÍA | F11: A
F12: B
F13: C
F14: D
F15: E
B17: I. NOMBRE DEL POYECTO | F17: NATURALEZA DE INTERVENCIÓN | I17: OBJETO | M17: LOCALIZACIÓN
F18: Mejoramiento | I18: del Servicio Policial de la Comisaría PNP | Z18: Indicador | AA18: Unidad de medida | AC18: Valor | AD18: Medio de Verificación
F19: Ampliación | I19: =+CONCATENATE(I18,M9) -> del Servicio Policial de la Comisaría PNP SECTORIAL PUNO
F20: Mejoramiento y Ampliación
B22: II. UNIDAD EJECUTORA DE INVERSION | Z22: ambientes inadecuados | AA22: Porcentaje | AD22: Inpección Técnica
Z23: Número de ambientes | AA23: Unidad | AD23: Inspección Técnica
B24: 2.1. NOMBRE
B26: 2.2. CÓDIGO
B27: 2.3. ESTRUCTURA
B28: Sector / Pliego | C28: 15 INTERIOR
C29: GOBIERNOS LOCALES
C30: GOBIERNOS REGIONALES
B31: Función | C31: 05 ORDEN PÚBLICO Y SEGURIDAD
B32: Divsión Funcional | C32: 014 ORDEN INTERNO
B33: Grupo Funcional | C33: 0028 OPERACIONES POLICIALES
B34: Responsable Funcional | C34: INTERIOR
B36: 2.4. SUSTENTO DE LA CAPACIDAD TÉCNICA Y LOGÍSTICA DE LA UNIDAD EJECUTORA EN RELACIÓN AL PIP | Z36: Indicador | AA36: Unidad de medida | AD36: Medio de Verificación
Z39: Ambientes inadecuados | AA39: Porcentaje | AD39: Inpección Técnica
B40: 2.5 LA UNIDAD FORMULADORA PERTENECE A | Z40: Número de ambientes | AA40: Unidad | AD40: Inventario de la Comisaría
Z41: Número de equipos | AD41: Entrevista
B42: GOBIERNO NACIONAL | D42: SI | F42: GOBIERNO REGIONAL O LOCAL | J42: SI | Z42: Estado de obsolescencia
D43: NO | J43: NO
Z44: Equipos inadecuados
B45: 2.6 SI LA UNIDAD FORMULADORA PERTENECE A UN GOBIERNO REGIONAL O LOCAL | Z45: Número de vehículos
Z46: Porcentaje de uso
B47: SE CUENTA CON OPINIÓN TÉCNICA DEL MINISTERIO DEL INTERIOR | J47: SI | K47: N° de DOCUMENTO
J48: NO
B49: SE CUENTA CON OPINIÓN TÉCNICA DE LA POLICIA NACIONAL DEL PERÚ | J49: SI | K49: N° de DOCUMENTO
J50: NO
B51: III. UBICACIÓN DEL PIP
B53: UBICACIÓN GEOGRAFICA | L53: DEPENDENCIA POLICIAL
B54: Departamento | L54: Macro Region Policial
B55: Provincia | L55: Frente Policial | Z55: Indicador | AA55: Unidad de medida | AD55: Medio de Verificación
B56: Distrito | L56: Division Policial | Z56: Victimización | AA56: Porcentaje | AD56: ENAPRES
B57: Localidad | L57: Comisaria Sectorial | Z57: Nivel de cobertura de sectores | AD57: Encuesta
B58: Coordenadas UTM Georeferenciado | Z58: Nivel de coordinación con comités | AD58: Entrevista
Z59: Percepción de inseguridad
N60: VRAEM
B61: IV. SITUACIÓN Y CARACTERÍSTICAS DEL SERVICIO POLICIAL | N61: CAJAMARCA
B63: 4.1. ESTADO DEL SANEAMIENTONFISICO LEGAL DEL TERRENO | J63: SI
J64: EN GESTIÓN
B66: DOCUMENTO:
B68: 4.2. EL TERRENO ES LIBRE O POSEE EDIFICACIONES | I68: LIBRE
I69: EDIFICACION
B71: 4.3. EL TERRENO CON EDIFICACION POSEE | I71: VISE
I72: INFORME TECNICO
I74: RESULTADOS RIESGO
J75: MUY ALTO | K75: ALTO | L75: MEDIO | M75: BAJO
B78: 4.4. EL TERRENO CUENTA CON
B80: CERTIFICADO DE PARAMETROS URBANISTICOS | G80: SI | I80: OTRO DOCUMENTO (DESCRIBA)
G81: NO
B83: 4.5. SITUACIÓN Y CARACTERÍSTICAS DE LA INFRAESTRUCTURA
B87: 4.6. SITUACIÓN Y CARACTERÍSTICAS DEL EQUIPAMIENTO
B90: 4.7. SITUACIÓN Y CARACTERÍSTICAS DE LOS RECURSOS HUMANOS
B93: 4.8. ORGANO RESPONSABLE DE LA OPERACIÓN Y MANTENIMIENTO DEL SERVICIO POLICIAL
B98: 4.9. ANALISIS DE RIESGOS DE LA INFRAESTRUCTURA
B100: TIPO DE PELIGROS | C100: OCURRIO | E100: FRECUENCIA | H100: INTENSIDAD | K100: AFECTACION | M100: MEDIDAS DE MITIGACION DE RIESGO
C101: SI | D101: NO | E101: Anual | F101: < a 5 años | G101: > 5 años | H101: BAJO | I101: MEDIO | J101: ALTO
B102: INUNDACIONES
B103: FUERTES VIENTOS
B104: LLUVIAS INTENSAS
B105: DESLIZAMIENTOS
B106: HELADAS
B107: SISMOS
B109: V. PROBLEMA Y OBJETIVO
B110: 5.1. IDENTIFICACION DEL PROBLEMA
B111: CAUSAS (Descripción) | I111: INDICADOR | K111: UNIDAD DE MEDIDA | M111: VALOR | N111: FUENTE DE INFORMACIÓN
B118: EFECTOS (Descripción) | I118: INDICADOR | K118: UNIDAD DE MEDIDA | M118: VALOR | N118: FUENTE DE INFORMACIÓN
B124: 5.2. INVOLUCRADOS
B125: AGENTE | I125: POSICIÓN | L125: INTERES | O125: CONTRIBUCIÓN
B126: MINISTERIO DEL INTERIOR | I126: Beneficiario
B127: POLICIA NACIONAL DEL PERÚ | I127: Cooperante
B128: GOBIERNO LOCAL | I128: Perjudicado
B129: GOBIERNO REGIONAL | I129: Oponente
B130: COMITÉ DE SEGURIDAD CIUDADANA
B131: POBLACION BENEFICIARIA
B135: 5.2. RELACIÓN ENTRE CAUSAS Y OBJETIVOS
B137: Relación entre Problema Central y Objetivo Central
B138: OBJETIVO (Descripción) | I138: INDICADOR | K138: UNIDAD DE MEDIDA | M138: VALOR META | N138: FUENTE DE VERIFICACIÓN
B141: Relación entre Causas y Medios
B142: MEDIOS (Descripción) | I142: INDICADOR | K142: UNIDAD DE MEDIDA | M142: VALOR META | N142: FUENTE DE VERIFICACIÓN
B148: Relación entre Efectos y Fines
B149: FINES (Descripción) | I149: INDICADOR | K149: UNIDAD DE MEDIDA | M149: VALOR META | N149: FUENTE DE VERIFICACIÓN
B155: 10. POBLACIÓN AFECTADA Y POBLACIÓN OBJETIVO
B157: Población afectada
B158: Tipo de Población | C158: Población de la Jurisdición Policial
B159: Cantidad
B160: Fuente de Información | C160: INEI
B161: Población Objetivo
B162: Tipo de Población | C162: Población de la Jurisdicción Policial
B163: Cantidad
B164: Fuente de Información | C164: INEI
B166: Características de la Población Objetivo | C166: 10
B168: Tipo de Clasificación | C168: Numero de personas | F168: Fuente de Información
B169: Población victima de un hecho delictivo o falta que denuncia | F169: INEI
B170: Población victima de un hecho delictivo o falta que no denuncia | F170: Estimación en base a ENAPRES
B171: Población con cobertura por el servicio de prevención | F171: Encuesta
B174: VI CALCULO DE LA BRECHA
B176: 6.1 SERVICIO DE INVESTIGACION | R176: INDICADORES (ENAPRES) | U176: Urb Nac | V176: mas 20000 | W176: menos 20000
H177: INDICADOR | R177: % pob que denuncia | U177: 0.156 | V177: 0.156 | W177: 0.159
B178: PROMEDIO ANUAL DELITOS DENUNCIADOS | H178: 96 | J178: Dato proporcionado por la comisaria | R178: % pob que no denuncia | U178: =1-U177 -> 0.844 | V178: =1-V177 -> 0.844 | W178: =1-W177 -> 0.841
B179: PROMEDIO ANUAL FALTAS DENUNCIADAS | H179: 372 | J179: Dato proporcionado por la comisaria | R179: % pob que potencialmente denunciaría | U179: =35.8276739648688%*0.5 -> 0.1791383698 | V179: =37.5774864863464%*0.5 -> 0.1878874324 | W179: =33.9183579468245%*0.5 -> 0.1695917897
B180: TASA DE CRECIMIENTO POBLACIONAL | H180: 0.0002 | J180: INEI
B182: POBLACION TOTAL (JURISDICCION) | I182: Mas de 20,000
I183: Menos de 20,000
B185: Delitos y Faltas D Y NO D | C185: 0 | D185: 1 | E185: 2 | F185: 3 | G185: 4 | H185: 5 | I185: 6 | J185: 7 | K185: 8 | L185: 9 | M185: 10
B186: Demanda | C186: =((C187*U178/U177)*U179)+C187 -> 921.5783524 | D186: =$C$186*(1+$H$180)^(D185-$C$185) -> 921.7626681 | E186: =$C$186*(1+$H$180)^(E185-$C$185) -> 921.9470206 | F186: 922.13141 | G186: 922.3158363 | H186: 922.5002995 | I186: 922.6847995 | J186: 922.8693365 | K186: 923.0539103 | L186: 923.2385211 | M186: 923.4231688
B187: Oferta | C187: =H178+H179 -> 468 | D187: =+C187 -> 468 | E187: =+D187 -> 468 | F187: 468 | G187: 468 | H187: 468 | I187: 468 | J187: 468 | K187: 468 | L187: 468 | M187: 468
B188: Brecha | C188: =+C186-C187 -> 453.5783524 | D188: =+D186-D187 -> 453.7626681 | E188: 453.9470206 | F188: 454.13141 | G188: 454.3158363 | H188: 454.5002995 | I188: 454.6847995 | J188: 454.8693365 | K188: 455.0539103 | L188: 455.2385211 | M188: 455.4231688
C190: Efectivos servicio de Investigación año 05 | I190: =ROUNDUP((H186/365),0)*3 -> 9
B192: 6.2 SERVICIOS DE PREVENCION | R192: km dia
B193: SECTORES | D193: TIPO | F193: DESCRIPCION | H193: Km. de recorrido por sector (a) | I193: Velocidad promedio de patrullaje Km/h (b) | J193: Tiempo de recorrido horas (c) | K193: % Efectivo de patrullaje (d) | L193: Tiempo de recorrido de patrullaje horas (e) =(c/d) | M193: Duracion del servicio Horas (f) | N193: N° de Recorridos de Patrullaje (g)=(f/e) | O193: Recorrido Total a Patrullar Km/dia (h)=(a*g) | R193: Rendimiento | S193: camioneta | T193: moto | U193: A pie
O194: Urbano | P194: Rural | R194: urbano | S194: =I195*M195*K195 -> 67.2 | T194: =S194*0.55 -> 36.96 | U194: =T194*0.2 -> 7.392
B195: SECTOR 1 | D195: URBANO | H195: 7.47 | I195: 14 | J195: =H195/I195 -> 0.5335714286 | K195: 0.6 | L195: =J195/K195*1 -> 0.8892857143 | M195: 8 | N195: =ROUNDUP((M195/L195),0) -> 9 | O195: =+N195*H195 -> 67.23 | R195: rural | S195: =I196*M196*K196 -> 98 | T195: =S195*0.55 -> 53.9
B196: SECTOR 2 | D196: RURAL | H196: 26.69 | I196: 35 | J196: =H196/I196 -> 0.7625714286 | K196: 0.35 | L196: =J196/K196*1 -> 2.17877551 | M196: 8 | N196: =ROUNDUP((M196/L196),0) -> 4 | P196: =+N196*H196 -> 106.76
B197: SECTOR 3 | H197: 9.89 | I197: 14 | J197: =H197/I197 -> 0.7064285714 | K197: 0.6 | L197: =J197/K197*1 -> 1.177380952 | M197: 8 | N197: =ROUNDUP((M197/L197),0) -> 7 | O197: =+N197*H197 -> 69.23
B198: SECTOR 4 | H198: 8.45 | I198: 14 | J198: =H198/I198 -> 0.6035714286 | K198: 0.6 | L198: =J198/K198*1 -> 1.005952381 | M198: 8 | N198: =ROUNDUP((M198/L198),0) -> 8 | O198: =+N198*H198 -> 67.6
B199: SECTOR 5 | H199: 8.15 | I199: 14 | J199: =H199/I199 -> 0.5821428571 | K199: 0.6 | L199: =J199/K199*1 -> 0.9702380952 | M199: 8 | N199: =ROUNDUP((M199/L199),0) -> 9 | O199: =+N199*H199 -> 73.35
B200: TOTAL | O200: =O195+O196+O197+O198+O199 -> 277.41 | P200: =P195+P196+P197+P198+P199 -> 106.76
N201: Total | O201: =O200+P200 -> 384.17
B202: DOTACION DE VEHICULOS Y PERSONAL
E203: Los Vehiculos son asignados de acuerdo a las caracteristicas propias del patrullaje
B204: Tipo de vehiculo | C204: Cantidad | E204: La dotacion minima por comisaria es de 1 camioneta y 1 motocicleta
C205: Urbano | D205: Rural | E205: Urbano | F205: Rural | G205: Personal
B206: Camioneta | C206: 1 | D206: 1 | E206: =+C206*S194 -> 67.2 | F206: =D206*S195 -> 98 | G206: =(C206+D206)*2 -> 4 | I206: Dotacion de personal por camioneta es de 02 efectivos por dia
B207: Motocicleta | C207: 6 | E207: =C207*T194 -> 221.76 | F207: =D207*T195 -> 0 | G207: =(C207+D207)*1 -> 6 | I207: Dotacion de personal por motocicleta es de 01 efectivo por dia
B208: A pie | C208: 1 | E208: =C208*U194 -> 7.392 | G208: =C208*2 -> 2 | I208: Dotacion de personal por patrullaje a pie es de 02 efectivos por servicio
B209: Total | E209: =E206+E207+E208 -> 296.352 | F209: =F206+F207 -> 98 | G209: =G206+G207 -> 10
B210: Cobertura | E210: =E209/O200 -> 1.068281605 | F210: =F209/P200 -> 0.9179467966
E211: =AVERAGE(E210:F210) -> 0.9931142007
E212: La Cobertura no debe ser menor al 90 %
B213: OFERTA PATRULLAJE PREVENTIVO
C215: Cantidad | D215: Rendimiento | E215: Total
B216: Camioneta | C216: 1 | D216: =S194 -> 67.2 | E216: =D216*C216 -> 67.2
B217: Motocicleta | D217: =C217*U203 -> 0
B218: A pie | C218: 1 | D218: =U194 -> 7.392 | E218: =D218*C218 -> 7.392
B219: Total | D219: =D216+D217 -> 67.2 | E219: =E216+E217+E218 -> 74.592
B220: Cobertura | D220: =E219/O201 -> 0.194164042
B222: La estimacion de la cantidad de recorridos (servicios) se basa en la cantidad de rondas anuales por sector
B223: Demanda (recorridos al año)
B224: Oferta (recorridos al año)
B225: Brecha
H227: SIN PORYECTO | K227: CON PROYECTO | N227: Sustento de Incremento
B228: 6.3 PERSONAL POLICIAL EN LA COMISARÍA
C229: Datos proporcionados por la comisaria | F229: Datos estimados por el PIP
B230: SERVICIO | C230: SIN PORYECTO | G230: SIN PORYECTO
C231: Operativos (Servicio) | E231: Asignados | G231: Operativos | I231: Asignados
B232: Investigacion | C232: 6 | E232: 10 | G232: =I190 -> 9 | I232: =G232 -> 9 | J232: Horario no rotativo
B233: Prevencion | C233: 7 | E233: 13 | G233: =G209 -> 10 | I233: =G233*2 -> 20 | J233: Turno Rotativo
B234: Atencion al ciudadano | C234: 1 | E234: 2 | G234: 2 | I234: 4 | J234: Cantidad de personal estándar
B235: Participacion Ciudadana | C235: 1 | E235: 2 | G235: 1 | I235: =G235*2 -> 2
B236: Administacion y jefaturas | C236: 3 | E236: 3 | G236: 5 | I236: 5
B237: Total | C237: =C232+C233+C234+C236 -> 17 | E237: =E232+E233+E234+E236 -> 28 | G237: =G232+G233+G234+G236+G235 -> 27 | I237: =I232+I233+I234+I236+I235 -> 40
B239: 7.1. ALTERNATIVA PARA SOLUCIONAR EL PROBLEMA
B240: ALTERNATIVA | C240: DESCRIPCIÓN | M240: INVERSIÓN (Nuevos Soles) | O240: PERÍODO DE EJECUCIÓN (meses) | P240: POBLACION BENEFICIADA
B242: Alternativa 1 | C242: EDIFICACION NUEVA Y ADQUISICION DE EQUIPAMIENTO DE LA COMISARIA
C243: REMODELACIÓN Y AMPLIACIÓN DE EDIFICACIÓN Y ADQUISICION DE EQUIPAMIENTO DE LA COMISARIA
B246: VIII. CADENA DE VALOR (RESUMEN DE LA CADENA DE VALOR)
B248: 8.1. COSTO POR M2 DE AREA TECHADA (no incluye obras exteriores, ni preliminares)
B250: 8.2. COSTO POR M2 DE AREA EXTERIOR (no incluye obras preliminares)
B252: Descripción Alternativa analizada | C252: Resultados necesarios para lograr el Objetivo | G252: Productos | J252: MO | K252: Materiales | L252: Otros | M252: Sub total Costos
B253: Alternativa Unica | C253: Resultado 01
C256: Resultado 02
C259: Resultado 03
B263: IX. FLUJO DE COSTOS
B265: 9.1. INVERSION POR COMPONENTE DE LA ALTERNATIVA SELECCIONADA (PRODUCTOS Y RUBROS)
B267: DESCRIPCIÓN DE LOS PRINCIPALES PRODUCTOS Y RUBROS | H267: UNIDAD DE MEDIDA | I267: CANTIDAD | J267: COSTO UNITARIO (Nuevos Soles) | L267: SUB TOTAL (Nuevos Soles) | N267: META
B268: 1. EXPEDIENTE TÉCNICO
B269: Expediente Tecnico de Obra
B270: Expediente Tecnico de Equipamiento
B271: 2. INFRAESTRUCTURA
B272: Obras preliminares
B273: Area techada
B274: Obras exteriores
B275: Obras complementarias
B276: Mitigacion de Riesgos
B277: 3. EQUIPAMIENTO
B278: Equipo Mobiliario
B279: Equipo Informatico
B280: Equipo de Comunicación
B281: Equipo Especializado
B282: Vehiculos
B283: 4. SUPERVISION
B284: Supervision de Expediente Tecnico
B285: Supervision de Obra
B286: Liquidacion
B287: 5. GESTION DEL PIP
B288: Gestion del PIP
B289: INVERSIÓN TOTAL
B292: 9.2. PLAZO DE EJECUCIÓN DEL PIP | N292: MESES
B294: 9.3. MODALIDAD DE EJECUCION | K294: Administración Directa
K295: Administración Indirecta-Por Contrata
K296: Aministración Indirecta-Asociación Público Privada
... 85 more rows

Sheet FORMATO INVIERTE.PE 1
B4: FICHA TÉCNICA DE PROYECTOS DE INVERSION ESTÁNDAR PARA MEJORAMIENTO Y/O AMPLIACION DEL SERVICIO POLICIAL EN COMISARÍAS
B5: Directiva N° 002-2017-EF/63.01
B6: [La información registrada en esta ficha tiene carácter de Declaración Jurada]
B8: I. DATOS GENERALES
B10: 1 ARTICULACIÓN CON EL PROGRAMA MULTIANUAL DE INVERSIONES (PMI)
B12: 1.1 SERVICIO PÚBLICO CON BRECHA IDENTIFICADA Y PRIORIZADA: | H12: SI
B14: 1.2 INDICADOR DE PRODUCTO ASOCIADO A LA BRECHA DE SERVICIOS: | H14: PORCENTAJE DE COMISARIAS QUE NO CUENTAN CON CAPACIDAD DE OPERACIÓN ADECUADA
B16: 2. NOMBRE DEL POYECTO | F16: NATURALEZA DE INTERVENCIÓN | I16: OBJETO | L16: LOCALIZACIÓN
F17: Mejoramiento | I17: del Servicio Policial de la Comisaría PNP SECTORIAL PUNO | L17: Distrito de PUNO, Provincia de PUNO, Departamento de PUNO
B19: 2.1 TIPO DE COMISARÍA | F19: A
B20: 2.2 NOMBRE DE LA COMISARÍA | F20: SECTORIAL PUNO
B22: 3. RESPONSABILIDAD FUNCIONAL
C24: Sector / Entidad | F24: 15 INTERIOR
C25: Función | F25: 05 ORDEN PÚBLICO Y SEGURIDAD
C26: División Funcional | F26: 014 ORDEN INTERNO
C27: Grupo Funcional | F27: 0028 OPERACIONES POLICIALES
C28: Sector Responsable | F28: INTERIOR
B30: 4. UNIDAD FORMULADORA-UF
B32: 4.1 NOMBRE DE LA UF | F32: OGIN - MININTER
B34: 4.2 PERSONA RESPONSABLE DE LA UNIDAD FORMULADORA | F34: ARQ. GABRIEL ENRIQUE CALDERÓN PONCE
B36: 4.3 LA UNIDAD FORMULADORA COMPETENTE
B38: GOBIERNO NACIONAL | D38: SI | F38: GOBIERNO REGIONAL O LOCAL
B40: 4.4 SI LA UNIDAD FORMULADORA PERTENECE A UN GOBIERNO REGIONAL O LOCAL
B42: SE CUENTA CON OPINIÓN TÉCNICA DEL MINISTERIO DEL INTERIOR (anexo 1) | K42: N° de DOCUMENTO
B43: SE CUENTA CON OPINIÓN TÉCNICA DE LA POLICIA NACIONAL DEL PERÚ (anexo 2) | K43: N° de DOCUMENTO
B45: 5. UNIDAD EJECUTORA DE INVERSIONES -UEI
B47: 5.1 PERSONA RESPONSABLE DE LA UEI | F47: ING. JUAN CARLOS SANCHEZ LAZO
B49: 5.2 ÓRGANO TÉCNICO RESPONSABLE | F49: OFICINA GENERAL DE INFRAESTRUCTURA
B52: 5.3. SUSTENTO DE LA CAPACIDAD TÉCNICA Y OPERATIVA DE LA UNIDAD EJECUTORA EN RELACIÓN A LA INVERSIÓN | F52: La Oficina General de Infraestructura de acuerdo al Reglamento de Organizaciones y Funciones del Ministerio del Interior en su artículo 69 indica que esta oficina debe de planificar, organizar, dirigir y controlar las acciones relacionadas con la ejecuciòn de los proyectos de inversión; también debe de programar, requerir y monitorear las contrataciones necesarias para ejecutar los proyectos de inversión de infraestructura y equipamiento de los órganos de la PNP; debe monitorear y evaluar la ejecución de la construcción, mejoramiento, rehabilitación de la infraestructura de los órganos de la PNP. Es el órgano técnico-normativo, responsable de las actividades referidas al desarrollo de la infraestructura. Contando con la capacidad técnica y logística solo para ejecutar obras por la modalidad de Administración Indirecta o Por Contrata, ya que cuenta con los profesionales y la logística necesaria para esta modalidad de ejecución.
B56: 6. UBICACIÓN DEL PROYECTO DE INVERSION
B58: UBICACIÓN GEOGRAFICA | L58: DEPENDENCIA POLICIAL (anexo 8)
B59: Departamento | C59: PUNO | L59: Macro Region Policial | N59: X Macro Región Policial Puno-Madre de Dios
B60: Provincia | C60: PUNO | L60: Region Policial | N60: Puno
B61: Distrito | C61: PUNO | L61: Division Policial | N61: PUNO
B62: Localidad | L62: Comisaria Sectorial
B63: Ubigeo | C63: 210101 | L63: Frente Policial
B64: Coordenadas UTM Georeferenciado | C64: 389840.85 m E - 8248455.09 m S | L64: Division Policial
L65: Comisaria Sectorial
B67: II. IDENTIFICACIÓN
B69: 7. CARACTERÍSTICAS Y SITUACIÓN DEL SERVICIO POLICIAL
B71: 7.1. ESTADO DEL SANEAMIENTO FISICO LEGAL DEL TERRENO | J71: SI
B73: DOCUMENTO: Ficha N° 6120 del Registros de predios la inmatriculación del dominio a favor del Ministerio del Interior, del terreno ubicado en el Jr. Deustua N° 536 con una extensión superficial del 3,288.25 m2. Según la Partida Registral N° 11000601, en el asiento 00001, el predio total queda reducido a un área superficial de 2, 342.93m2
B75: 7.1.1. EL TERRENO ES LIBRE O POSEE EDIFICACIONES | I75: EDIFICACION
B77: 7.1.2. EL TERRENO CON EDIFICACION POSEE (anexo 3) | I77: VISE
I79: RESULTADOS RIESGO | K79: MUY ALTO
B81: 7.1.3. EL TERRENO CUENTA CON
B83: CERTIFICADO DE PARAMETROS URBANISTICOS (anexos 4,5,6) | G83: SI | I83: OTRO DOCUMENTO (DESCRIBA) | M83: CERTIFICADO DE COMPATIBILIDAD DE USOS
B85: 7.2. CARACTERÍSTICAS Y SITUACIÓN DE LA INFRAESTRUCTURA
B87: La Comisaría Sectorial PNP Puno actualmente funciona en el Bloque 1 y 3 del Complejo Policial Nº 02 de la X MACREPOL Puno-Madre de Dios, se encuentra en muy mal estado de conservación, la eidficación es de dos niveles, el material de construcción es de adobe y quincha, y por las características que presenta no brinda las condiciones de seguridad óptimas a los efectivos policiales y personas que diariamente acuden a las instalaciones. En el primer nivel existe humedad y filtraciones debido a las lluvias. La edificación, no cuenta con la distribución arquitectónica adecuada para el uso de comisaría, ni cuenta con ambientes idóneos para la operatividad de sus funciones, no se cuentan con ambientes necesarios para brindar el servicio policial (falta módulo NCPP, dormitorios, celdas adecuadas, oficinas, etc.). La estructura es de adobe y antigua, en el primer nivel se observó humedad en muros y filtración de agua debido a lluvias, los muros de adobe presentan inclinación y los techos de madera presentan daños. Los techos y áreas libres no cuentan con un sistema de drenaje de aguas pluviales adecuado. La Municipalidad Provincial de Puno realizó la Visita de Inspección de Seguridad en Edificaciones (VISE) al inmueble en donde funciona la Comisaría Sectorial PNP Puno y concluyó que presenta RIESGO MUY ALTO, no brindando las condiciones de seguridad necesarias para los efectivos policiales y las personas que acuden a la comisaría.
B89: 7.3. CARACTERÍSTICAS Y SITUACIÓN DEL EQUIPAMIENTO
B90: Equipamiento Mobiliario: El mobiliario de las oficinas de la comisaría se encuentran en mal estado, muchos de ellos no operativos. Sin embargo, debido a la apremiante necesidad de atender a los requerimientos de la población demandante del servicio policial, se sigue haciendo uso de estos mobiliarios en mal estado, exponiendo la integridad física de los efectivos ante posibles accidentes fortuitos. Respecto al mobiliario cuenta con 25 escritorios de metal en regular estado de conservación, 07 archivadores de metal en regular estado, 03 sillas giratorias de metal en regular estado, 07 sillas fijas de metal en regular estado, 01 estante de metal en regular estado, 08 camarotes de metal en regular estado, entre otros bienes de regular a mal estado de conservación. Equipamiento informático y Electrónico: La comisaría cuenta con 11 equipos de computo operativos, 13 CPU, 11 monitores operativos, 13 teclados, 13 mouses, 06 equipos multifuncionales (impresora, fotocopiadora y escaner), 02 televisores en mal estado de conservación y 01 filmadora en regular estado de conservación. Equipamiento Especializado: Solo se cuenta con 01 cámara fotográfica en regular estado y chalecos antibalas, pero en cantidad insificuente para el número de efectivos policiales, siendo necesaria la implementación de equipamiento especializado. Equipos de Comunicación: No se cuenta con equipos de comunicación adecuados. Vehículos Motorizados: Se cuenta solamente con 04 camionetas operativas dentro de la vida útil para el servicio de prevención y atención a las solicitudes de la población a lo largo de su jurisdicción
B92: 7.4. CARACTERÍSTICAS Y SITUACIÓN DE LOS RECURSOS HUMANOS
B93: Actualmente la comisaría tiene asignado a 118 efectivos policiales: 01 Comandante PNP, 02 Alferez PNP, 10 SO Superior PNP, 15 SO Brigadier PNP, 11 SOT Primera PNP, 07 SOT Segunda PNP, 03 SOT Tercera, 11 SO Primera PNP, 22 SO Segunda PNP, 36 SO Tercera, de los cuales 76 efectivos policiales se encuentran operativos de manera diaria. Los efectivos policiales se distribuyen en las funciones de los servicios policiales, y por el sistema de rotación de 24x24 y horario administrativo, resultan insuficientes para realizar adecuadamente el servicio policial. El comisario realiza sus funciones como jefe del comando, 08 efectivos en el área de administración, 14 efectivos en atención al público, 24 efectivos en el servicio de investigación, 37 efectivos en el servicio de prevención, 04 efectivos en la Oficina de Participación Ciudadana (OPC) y 30 efectivos para los Puestos de Auxilio Rápido de Laykakota, Salcedo y Bellavista.
B95: 8. PROBLEMA CENTRAL, CAUSAS Y EFECTOS
B96: PROBLEMA CENTRAL
B97: La población de la jurisdicción de la Comisaría PNP SECTORIAL PUNO tiene limitado acceso a los servicios policiales
B98: CAUSAS DIRECTAS (Descripción) | I98: INDICADOR | K98: UNIDAD DE MEDIDA | M98: VALOR | N98: FUENTE DE INFORMACIÓN
B99: Espacios y ambientes inadecuados e insuficientes para realizar la funicón policial | I99: Ambientes inadecuados | K99: Porcentaje | M99: 1 | N99: Inspección Técnica
B100: Los equipos y/o unidades vehiculares son inadecuados e insuficientes | I100: Número de Equipos | K100: Porcentaje | M100: 0.9 | N100: Inventario de la Comisaría
B101: Las comunicaciones en la función policial son inadecuadas e insuficientes | I101: Número de Equipos | K101: Porcentaje | M101: 1 | N101: Inventario de la Comisaría
B102: CAUSAS INDIRECTAS (Descripción) | I102: INDICADOR | K102: UNIDAD DE MEDIDA | M102: VALOR | N102: FUENTE DE INFORMACIÓN
B103: Edificación realizada sin criterio técnico | I103: Ambientes inadecuados | K103: Porcentaje | M103: 1 | N103: Inspección Técnica
B104: Equipos no adecuado para la función policial | I104: Equipos inadecuados | K104: Porcentaje | M104: 0.9 | N104: Inventario de la Comisaría
B105: Equipos de comunicación insuficientes para la función policial | I105: Número de equipos | K105: Porcentaje | M105: 1 | N105: Inventario de la Comisaría
B107: EFECTOS DIRECTOS (Descripción) | I107: INDICADOR | K107: UNIDAD DE MEDIDA | M107: VALOR | N107: FUENTE DE INFORMACIÓN
B108: Incremento de incidencias delictivas | I108: Victimización | K108: Porcentaje | M108: 0.18 | N108: ENAPRES
B109: Baja participación de la población en seguridad ciudadana | I109: Nivel de coordinación con comités | K109: Porcentaje | M109: 0.16 | N109: ENAPRES
B110: EFECTOS INDIRECTOS (Descripción) | I110: INDICADOR | K110: UNIDAD DE MEDIDA | M110: VALOR | N110: FUENTE DE INFORMACIÓN
B111: Aumento de la percepción de inseguridad | I111: Percepción de inseguridad | K111: Porcentaje | M111: 0.93 | N111: ENAPRES
B112: población desorganizada ante la presencia delictiva | I112: Nivel de coordinación con comités | K112: Porcentaje | M112: 0.84 | N112: ENAPRES
B113: EFECTO FINAL (Descripción) | I113: INDICADOR | K113: UNIDAD DE MEDIDA | M113: VALOR | N113: FUENTE DE INFORMACIÓN
B114: Baja contribución al Orden Interno y Seguridad Ciudadana | I114: Percepción de inseguridad | K114: Porcentaje | M114: 0.93 | N114: ENAPRES
B116: 9. INVOLUCRADOS
B117: AGENTE | I117: POSICIÓN | L117: INTERES | O117: CONTRIBUCIÓN
B118: MINISTERIO DEL INTERIOR | I118: Cooperante | L118: Mejorar los servicios policiales en beneficio de la población | O118: Impulsar y promover el desarrollo y ejecución de estudios de inversión para optimizar los servicios que brinda la Policía Nacional del Perú.
B119: POLICIA NACIONAL DEL PERÚ | I119: Cooperante | L119: Mejorar las condiciones de prestación de los servicios policiales del país. | O119: Se comprometen a asumir los costos de operación y mantenimiento, y la asignación de personal policial de acuerdo al dimensionamiento del proyecto.
B120: GOBIERNO LOCAL | I120: Cooperante | L120: Realizar acciones orientadas a la protección ciudadana y seguridad vecinal para mantener el orden y la tranquilidad dentro de su jurisdicción distrital. | O120: Comprometen en apoyar en la gestión de documentos para la formulación del proyecto.
B121: COMITÉ DE SEGURIDAD CIUDADANA | I121: Cooperante | L121: Participar en la intervención y prevención de acciones que atentan la seguridad ciudadana. | O121: Se comprometen a brindar información y contribuir en lo que se requiera durante las etapas de pre inversión del proyecto.
B122: POBLACION BENEFICIARIA | I122: Beneficiario | L122: Contar con una comisaria PNP eficiente en atención al ciudadano. Asimismo, contar con juntas vecinales y comités de autodefensa debidamente organizadas y capacitadas. | O122: Se comprometen a Integrar los comités de participación ciudadana y los comités cívicos de apoyo.
B124: OTRO: COMISARIA SECTORIAL PNP PUNO | I124: Beneficiario | L124: Trabajar en condiciones óptimos para cubrir con la demanda poblacional de la jurisdicción asignada. | O124: Facilitar la información necesaria para el trabajo de campo para la formulación del proyecto.
B126: 10. POBLACIÓN AFECTADA Y POBLACIÓN OBJETIVO
B128: Población afectada
B129: Tipo de Población | C129: Población de la Jurisdición Policial
B130: Cantidad | C130: 144421
B131: Fuente de Información | C131: INEI
B133: Población Objetivo
B134: Tipo de Población | C134: Población de la Jurisdicción Policial
B135: Cantidad | C135: 144421
B136: Fuente de Información | C136: INEI
B138: Características de la Población Objetivo
B140: Tipo de Clasificación | C140: Numero de personas | F140: Fuente de Información
B141: Población victima de un hecho delictivo o falta que denuncia | C141: 67228 | F141: Estimación en base a ENAPRES
B142: Población victima de un hecho delictivo o falta que no denuncia | C142: 77193 | F142: Estimación en base a ENAPRES
B143: Población con cobertura por el servicio de prevención | C143: =+C135 -> 144421 | F143: Estimación en base a ENAPRES
B145: 11. DEFINICIÓN DE LOS OBJETIVOS DEL PROYECTO
B147: OBJETIVO CENTRAL
B148: La población de la jurisdicción de la Comisaría PNP SECTORIAL PUNO tiene adecuado acceso a los servicios policiales
B150: MEDIOS DE PRIMER NIVEL(Descripción) | I150: INDICADOR | K150: UNIDAD DE MEDIDA | M150: VALOR META | N150: FUENTE DE VERIFICACIÓN
B151: Espacios y ambientes adecuados y suficientes para realizar la funicón policial | I151: Ambientes adecuados | K151: Porcentaje | M151: 1 | N151: Inpección Técnica
B152: Los equipos y/o unidades vehiculares son adecuados y suficientes | I152: Número de Equipos | K152: Porcentaje | M152: 1 | N152: Inventario de la Comisaría
B153: Las comunicaciones en la función policial son adecuadas y suficientes | I153: Número de Equipos | K153: Porcentaje | M153: 1 | N153: Inventario de la Comisaría
B154: MEDIOS FUNDAMENTALES | I154: INDICADOR | K154: UNIDAD DE MEDIDA | M154: VALOR META | N154: FUENTE DE VERIFICACIÓN
B155: Edificación realizada con criterio técnico | I155: Ambientes adecuados | K155: Porcentaje | M155: 1 | N155: Inpección Técnica
B156: Equipos y mobiliario adecuado para la función policial | I156: Equipos adecuados | K156: Porcentaje | M156: 1 | N156: Inventario de la Comisaría
B157: Equipos de comunicación suficientes para la función policial | I157: Número de equipos | K157: Porcentaje | M157: 1 | N157: Inventario de la Comisaría
B160: FINES DIRECTOS(Descripción) | I160: INDICADOR | K160: UNIDAD DE MEDIDA | M160: VALOR META | N160: FUENTE DE VERIFICACIÓN
B161: Disminución de incidencias delictivas | I161: Victimización | K161: Porcentaje | M161: 0.18 | N161: ENAPRES
B162: Mayor participación de la población en seguridad ciudadana | I162: Nivel de coordinación con comités | K162: Porcentaje | M162: 0.35 | N162: ENAPRES
B163: FINES INDIRECTOS (Descripción) | I163: INDICADOR | K163: UNIDAD DE MEDIDA | M163: VALOR META | N163: FUENTE DE VERIFICACIÓN
B164: Disminución de la percepción de inseguridad | I164: Percepción de inseguridad | K164: Porcentaje | M164: 0.8 | N164: ENAPRES
B165: población organizada ante la presencia delictiva | I165: Nivel de coordinación con comités | K165: Porcentaje | M165: 0.32 | N165: ENAPRES
B166: FIN ULTIMO | I166: INDICADOR | K166: UNIDAD DE MEDIDA | M166: VALOR META | N166: FUENTE DE VERIFICACIÓN
B167: Incremento de la contribución al Orden Interno y Seguridad Ciudadana | I167: Percepción de inseguridad | K167: Porcentaje | M167: 0.8 | N167: ENAPRES
B169: 12. DESCRIPCIÓN DE LA ALTERNATIVA DE SOLUCIÓN
B171: ALTERNATIVA | C171: DESCRIPCIÓN
B173: Alternativa Unica | C173: EDIFICACION NUEVA Y ADQUISICION DE EQUIPAMIENTO DE LA COMISARIA
B175: 13. REQUERIMIENTOS INSTITUCIONALES Y/O NORMATIVOS
B177: LINEAMIENTOS DE POLÍTICA NACIONAL - SECTORIAL Y LOCAL: Constitución Política del Perú, Ley del Sistema de Seguridad Ciudadana, Ley de la Policía Nacional del Perú, Ley Orgánica de Municipalidades, Ley del Sistema Nacional de Programación Multianual y Gestión de Inversiones. PLANES Y PROGRAMAS: Plan Nacional de Seguridad Ciudadana 2013-2018, Plan Local de Seguridad Ciudadana de la Provincia de Puno 2017, Plan Estratégico Sectorial Multianual del Ministerio del Interior - PESEM 2016-2021 (actualizado el 29 de diciembre del 2016). NORMAS VIGENTES: Decreto Legislativo Nº 1252 que crea el Sistema Nacional de Programación Multianual y Gestión de Inversiones; Directiva Nº 001-2017-EF/63.01 publicada el 08 de abril del 2017 "Directiva para la Programación Multianual en el marco del Sistema Nacional de Programación Multianual y Gestión de Inversiones"; Directiva Nº 002-2017-EF/63.01 publicada el 21 de abril del 2017 "Directiva para la Formulación y Evaluación en el marco del Sistema Nacional de Programación Multianual y Gestión de Inversiones"; Directiva Nº 003 -2017-EF/63.01, publicada el 20 de setiembre del 2017 "Directiva para la ejecución de inversiones públicas en el marco del sistema nacional de programación multianual y gestión de inversiones"; Directiva Nº 04-13-2016-DIRGEN-PNP/DIRNGI-B, aprobada con Resolución Directoral Nº 642-2016-DIRGEN/EMG-PNP, la cual establece las normas y procedimientos que regulan la construcción de locales policiales para el funcionamiento de unidades y sub unidades de la Policía Nacional del Perú. Reglamento de la Ley de Contrataciones aprobado mediante Decreto Legislativo Nº 1341.
B186: III. FORMULACIÓN Y EVALUACIÓN
B188: 14. HORIZONTE DE EVALUACIÓN
B190: Número de años de horizonte de evaluación | F190: 10
B192: 15. ESTUDIO DE MERCADO DEL SERVICIO PÚBLCIO
B194: 15.1 DEFINICIÓN DEL SERVICIO PÚBLICO
B196: La Comisaría Sectorial PNP Puno, de categoría “A”, pertenece – Región Policial Puno –X Macro Región Policial Puno - Madre de Dios. Esto de acuerdo a lo descrito en el Informe de Estudio de Estado Mayor de la Comisaría Sectorial PNP Puno; en donde también se indica la Jurisdicción Policial de esta comisaria, que comprende al distrito de Puno, con una población estimada de 144421 habitantes. Los servicios policiales que se brindan son: Servicio de Investigación y Servicio de Prevención (patrullaje).
B201: 15.2 ANÁLISIS DE LA DEMANDA
B203: 15.2.1 SERVICIO DE INVESTIGACION
H204: INDICADOR
B205: PROMEDIO ANUAL DELITOS DENUNCIADOS | H205: 527 | J205: Dato proporcionado por la comisaria
B206: PROMEDIO ANUAL FALTAS DENUNCIADAS | H206: 348 | J206: Dato proporcionado por la comisaria
B207: TASA ANUAL DE CRECIMIENTO POBLACIONAL | H207: 0.0118 | J207: INEI
B209: POBLACION TOTAL (JURISDICCION) | I209: 144421
B212: Delitos y Faltas D Y NO D | C212: 0 | D212: 1 | E212: 2 | F212: 3 | G212: 4 | H212: 5 | I212: 6 | J212: 7 | K212: 8 | L212: 9 | M212: 10 | N212: TOTAL
B213: Demanda | C213: =((C214*base1!U178/base1!U177)*base1!U179)+C214 -> 1723.036449 | D213: =$C$213*(1+$H$207)^(D212-$C$212) -> 1743.36828 | E213: =$C$213*(1+$H$207)^(E212-$C$212) -> 1763.940025 | F213: 1784.754518 | G213: 1805.814621 | H213: 1827.123233 | I213: 1848.683288 | J213: 1870.49775 | K213: 1892.569624 | L213: 1914.901945 | M213: 1937.497788 | N213: =+SUM(D213:M213) -> 18389.15107
B214: Oferta | C214: =H205+H206 -> 875 | D214: =+C214 -> 875 | E214: =+D214 -> 875 | F214: 875 | G214: 875 | H214: 875 | I214: 875 | J214: 875 | K214: 875 | L214: 875 | M214: 875 | N214: =+SUM(D214:M214) -> 8750
C216: Número de Efectivos del servicio de Investigación año 05 | I216: =ROUNDUP((H213/365),0)*3 -> 18
B218: 15.2.2 SERVICIOS DE PREVENCION
B219: SECTORES | D219: TIPO | F219: DESCRIPCION | H219: Km. De vias a recorrrer por sector (a) | I219: Velocidad promedio de patrullaje Km/h (b) | J219: Tiempo de recorrido horas (c) | K219: % Efectivo de patrullaje (d) | L219: Tiempo de recorrido de patrullaje horas (e) =(c/d) | M219: Duracion del servicio Horas (f) | N219: N° de Recorridos de Patrullaje (g)=(f/e) | O219: Recorrido Total a Patrullar Km/dia (h)=(a*g)
O220: Urbano | P220: Rural
B221: SECTOR 1 | D221: URBANO | F221: EN LA ZONA URBANA | H221: 16.5 | I221: 14 | J221: =IF(I221=0,"",H221/I221) -> 1.178571429 | K221: 0.6 | L221: =IF(K221=0,"",J221/K221*1) -> 1.964285714 | M221: 8 | N221: =IF(K221=0,"",ROUNDUP((M221/L221),0)) -> 5 | O221: =+IF(D221="URBANO",IF(K221=0,"",N221*H221),0) -> 82.5 | P221: =+IF(D221="RURAL",IF(K221=0,"",N221*H221),0) -> 0
B222: SECTOR 2 | D222: URBANO | F222: EN LA ZONA URBANA | H222: 27.6 | I222: 14 | J222: =IF(I222=0,"",H222/I222) -> 1.971428571 | K222: 0.6 | L222: =IF(K222=0,"",J222/K222*1) -> 3.285714286 | M222: 8 | N222: =IF(K222=0,"",ROUNDUP((M222/L222),0)) -> 3 | O222: =+IF(D222="URBANO",IF(K222=0,"",N222*H222),0) -> 82.8 | P222: =+IF(D222="RURAL",IF(K222=0,"",N222*H222),0) -> 0
B223: SECTOR 3 | D223: URBANO | F223: EN LA ZONA URBANA | H223: 20 | I223: 14 | J223: =IF(I223=0,"",H223/I223) -> 1.428571429 | K223: 0.6 | L223: 2.380952381 | M223: 8 | N223: 4 | O223: 80 | P223: =+IF(D223="RURAL",IF(K223=0,"",N223*H223),0) -> 0
B224: SECTOR 4 | D224: URBANO | F224: EN LA ZONA URBANA | H224: 24.4 | I224: 14 | J224: 1.742857143 | K224: 0.6 | L224: 2.904761905 | M224: 8 | N224: 3 | O224: 73.2 | P224: 0
B225: SECTOR 5 | D225: URBANO | F225: EN LA ZONA URBANA | H225: 29.2 | I225: 14 | J225: =IF(I225=0,"",H225/I225) -> 2.085714286 | K225: 0.6 | L225: 3.476190476 | M225: 8 | N225: 3 | O225: 87.6 | P225: 0
B226: SECTOR 6 | D226: URBANO | F226: EN LA ZONA URBANA | H226: 15 | I226: 14 | J226: =IF(I226=0,"",H226/I226) -> 1.071428571 | K226: 0.6 | L226: =IF(K226=0,"",J226/K226*1) -> 1.785714286 | M226: 8 | N226: =IF(K226=0,"",ROUNDUP((M226/L226),0)) -> 5 | O226: =+IF(D226="URBANO",IF(K226=0,"",N226*H226),0) -> 75 | P226: =+IF(D226="RURAL",IF(K226=0,"",N226*H226),0) -> 0
B227: SECTOR 7 | D227: URBANO | F227: EN LA ZONA URBANA | H227: 21.9 | I227: 14 | J227: 1.564285714 | K227: 0.6 | L227: 2.607142857 | M227: 8 | N227: 4 | O227: 87.6 | P227: 0
B228: SECTOR 8 | D228: URBANO | F228: EN LA ZONA URBANA | H228: 24.4 | I228: 14 | J228: =IF(I228=0,"",H228/I228) -> 1.742857143 | K228: 0.6 | L228: =IF(K228=0,"",J228/K228*1) -> 2.904761905 | M228: 8 | N228: =IF(K228=0,"",ROUNDUP((M228/L228),0)) -> 3 | O228: =+IF(D228="URBANO",IF(K228=0,"",N228*H228),0) -> 73.2 | P228: =+IF(D228="RURAL",IF(K228=0,"",N228*H228),0) -> 0
B229: SECTOR 9 | D229: URBANO | F229: EN LA ZONA URBANA | H229: 34 | I229: 14 | J229: 2.428571429 | K229: 0.6 | L229: 4.047619048 | M229: 8 | N229: 2 | O229: 68 | P229: 0
B230: SECTOR 10 | D230: URBANO | F230: EN LA ZONA URBANA | H230: 19 | I230: 14 | J230: 1.357142857 | K230: 0.6 | L230: 2.261904762 | M230: 8 | N230: 4 | O230: 76 | P230: 0
B231: SECTOR 11 | D231: URBANO | F231: EN LA ZONA URBANA | H231: 26 | I231: 14 | J231: 1.857142857 | K231: 0.6 | L231: 3.095238095 | M231: 8 | N231: 3 | O231: 78 | P231: 0
B232: SECTOR 12 | D232: URBANO | F232: EN LA ZONA URBANA | H232: 17.9 | I232: 14 | J232: 1.278571429 | K232: 0.6 | L232: 2.130952381 | M232: 8 | N232: 4 | O232: 71.6 | P232: 0
O233: 0 | P233: 0
B234: TOTAL | N234: =IF(SUM(N221:N233)=0,"",SUM(N221:N233)) -> 43 | O234: =IF(SUM(O221:O233)=0,"",SUM(O221:O233)) -> 935.5 | P234: =IF(SUM(P221:P233)=0,"",SUM(P221:P233)) -> 
N235: Total | O235: =IF(O234:P234=0,"",SUM(O234:P234)) -> 935.5
B236: 15.3 ANÁLISIS DE LA OFERTA
B238: DOTACION DE VEHICULOS Y PERSONAL
B240: Tipo de vehiculo
C241: Urbano | D241: Rural | E241: Urbano | F241: Rural | G241: Personal
B242: Camioneta | C242: 7 | E242: =+C242*base1!S194 -> 470.4 | F242: =D242*base1!S195 -> 0 | G242: =(C242+D242)*2 -> 14
B243: Motocicleta | C243: 10 | E243: =C243*base1!T194 -> 369.6 | F243: =D243*base1!T195 -> 0 | G243: =(C243+D243)*1 -> 10
B244: A pie | C244: 1 | E244: =C244*base1!U194 -> 7.392 | G244: =C244*2 -> 2
B245: Total | E245: =E242+E243+E244 -> 847.392 | F245: =F242+F243 -> 0 | G245: =G242+G243+G244 -> 26
B246: Cobertura | E246: =IF(O234="","",E245/O234) -> 0.90581721 | F246: =IF(P234="","",F245/P234) -> 
E247: =IF(E246="","",AVERAGE(E246:F246)) -> 0.90581721
E248: La Cobertura no debe ser menor al 90 %
B249: OFERTA PATRULLAJE PREVENTIVO
C251: Cantidad | D251: Rendimiento | E251: Total
B252: Camioneta | C252: 4 | D252: 67.2 | E252: =D252*C252 -> 268.8
B253: Motocicleta | E253: =D253*C253 -> 0
B254: A pie | E254: =D254*C254 -> 0
B255: Total | D255: =D252+D253+D254 -> 67.2 | E255: =E252+E253+E254 -> 268.8
B256: Cobertura | D256: =IF(E255=0,"",E255/O235) -> 0.287332977
B258: Recorridos de Patrullaje | C258: 0 | D258: 1 | E258: 2 | F258: 3 | G258: 4 | H258: 5 | I258: 6 | J258: 7 | K258: 8 | L258: 9 | M258: 10 | N258: TOTAL
B259: Demanda (recorridos al año) | C259: =+IF(N234="","",N234*365) -> 15695 | D259: =+C259 -> 15695 | E259: =+D259 -> 15695 | F259: 15695 | G259: 15695 | H259: 15695 | I259: 15695 | J259: 15695 | K259: 15695 | L259: 15695 | M259: 15695 | N259: =+SUM(D259:M259) -> 156950
B260: Oferta (recorridos al año) | C260: =IF(D256="","",C259*D256) -> 4509.691074 | D260: =+C260 -> 4509.691074 | E260: =+D260 -> 4509.691074 | F260: 4509.691074 | G260: 4509.691074 | H260: 4509.691074 | I260: 4509.691074 | J260: 4509.691074 | K260: 4509.691074 | L260: 4509.691074 | M260: 4509.691074
B262: PERSONAL POLICIAL EN LA COMISARÍA
C263: Datos proporcionados por la comisaria | F263: Datos estimados por el PROYECTO DE INVERSION
B264: SERVICIO | C264: SIN INTERVENCIÓN | G264: CON INTERVENCIÓN
C265: Operativos (En Servicio) | E265: Asignados | G265: Operativos | I265: Asignados
B266: Investigacion | C266: 24 | E266: 24 | G266: =I216 -> 18 | I266: =G266 -> 18 | J266: Horario no rotativo
B267: Prevencion | C267: 19 | E267: 37 | G267: =G245 -> 26 | I267: =G267*2 -> 52 | J267: Turno Rotativo
B268: Atencion al público | C268: 7 | E268: 14 | G268: 7 | I268: 14 | J268: Cantidad de personal fijo
B269: Participacion Ciudadana | C269: =2+15 -> 17 | E269: =4+30 -> 34 | G269: 17 | I269: 34
B270: Administacion y jefaturas | C270: 9 | E270: 9 | G270: 15 | I270: 15
B271: Total | C271: =C266+C267+C268+C270+C269 -> 76 | E271: =E266+E267+E268+E270+E269 -> 118 | G271: =G266+G267+G268+G270+G269 -> 83 | I271: =+I266+I267+I268+I269+I270 -> 133
B273: 15.3 BALANCE OFERTA-DEMANDA
B275: Servicios con brecha | C275: Unidad de Medida | E275: Año 1 | F275: Año 2 | G275: Año 3 | H275: Año 4 | I275: Año 5 | J275: Año 6 | K275: Año 7 | L275: Año 8 | M275: Año 9 | N275: Año 10
B276: Servicio de Prevención | C276: Recorrdios al año | E276: =IF(D260="","",D259-D260) -> 11185.30893 | F276: 11185.30893 | G276: 11185.30893 | H276: 11185.30893 | I276: 11185.30893 | J276: 11185.30893 | K276: 11185.30893 | L276: 11185.30893 | M276: 11185.30893 | N276: 11185.30893
B277: Servicio de Investigación | C277: Delitos y faltas al año | E277: =+$D$213-$D$214 -> 868.3682796 | F277: =+E213-E214 -> 888.9400253 | G277: 909.7545176 | H277: 930.8146209 | I277: 952.1232334 | J277: 973.6832875 | K277: 995.4977503 | L277: 1017.569624 | M277: 1039.901945 | N277: 1062.497788
B279: 16. ANÁLISIS TÉCNICO
B280: ALTERNATIVA | C280: DESCRIPCIÓN | M280: INVERSIÓN (Nuevos Soles) | O280: PERÍODO DE EJECUCIÓN (meses) | P280: POBLACION BENEFICIADA
B282: Alternativa Unica | C282: I. COMPONENTE INFRAESTRUCTURA: EL PROYECTO CONTEMPLA LA DEMOLICIÓN DE INFRAESTRUCTURA EXISTENTE EN 780.42M2 (PARTE POSTERIOR DEL PREDIO) Y CONSTRUCCIÓN DE 01 COMISARIA DE TIPO "A" DE 03 PISOS, CON UN ÁREA TECHADA TOTAL DE 1943.99M2 (EN EL PRIMER PISO CON 641.52M2, SEGUNDO PISO CON 674.46M2 Y TERCER PISO CON 628.01M2); 173.90M2 DE ÁREA SIN TECHAR (138.90M2 DE ÁREA LIBRE Y 35M2 DE ÁREA SIN TECHAR EN EL 3ER PISO), 2, 117.89 DE ÁREA OCUPADA. II COMPONENTE EQUIPAMIENTO: ADQUISICIÓN DE 89 KITS DE EQUIPAMIENTO DE MOBILIARIO, 29 KITS DE EQUIPAMIENTO INFORMÁTICO Y ELECTRÓNICO, 141 KITS DE EQUIPAMIENTO ESPECIALIZADO, 19 KITS DE EQUIPAMIENTO DE COMUNICACIÓN Y ADQUISICIÓN DE 13 VEHÍCULOS MOTORIZADOS (03 CAMIONETAS Y 10 MOTOCICLETAS). | M282: =+O384 -> 7325709.197 | O282: 9 | P282: =+I209 -> 144421
B284: 16.1 ANALISIS DE DISEÑO
B286: Para el diseño contempla la construcción de una Comisaria de Tipo A, el terreno tiene un área total de 2, 342.93m2, el proyecto intervedrá en 780.42m2 (parte posterior del predio), quedando un área sin intervenir de 1, 562.51m2; la construcción consta de tres pisos. El proyecto cuenta con un área techada de 1943.99m2, un área sin techar de 173.90m2, y un área ocupada de 2117.89m2. Respetando el dimensionamiento para 133 efectivos asignados y 83 efectivos operativos. Las características funcionales van de acuerdo también a la tipología de Comisaría PNP (Tipo A) dispuesto en la Directiva N° 04-13-2016-DIRGEN-PNP/DIRNGI-B aprobado mediante R.D. N° 642-2016-DIRGEN/EMG-PNP de fecha Lima 02.07.16, acta de aprobación de los Programas Arquitectónicos Estandarizados de las Comisarías PNP Tipo a Nivel Nacional de fecha 11.07.17, y acta de aprobación de zonificación arquitectónica de la Comisaría Sectorial PNP Puno tipo "A" de fecha 29.09.17.
B289: 16.2 ANALISIS DE LOCALIZACIÓN
B290: La Comisaría Sectorial PNP Puno, se ubica en la Jr. Deustua N° 536 del distrito de Puno, provincia y departamento de Puno, en la región natural sierra, a 3827 msnm, con código de ubigeo 210101, el proyecto intervendrá en la parte posterior del predio. El terreno de la comisaría se ubica estratégicamente a media cuadra de la Plaza de Armas del Distrito de Puno, en el centro de la ciudad. El terreno donde se ubica la comisaría es el mismo donde se plantea intervenir con proyecto,actualmente viene funcionando en las instalaciones del Complejo Policial Nº 02 de la X MACREPOL Puno-Madre de Dios y presenta las siguientes características: • Se encuentra ubicado en la zona urbana del distrito de Puno, con calles asfaltadas, veredas, con conexiones a los servicios de agua, desagüe, teléfono, cable, tv e internet. • El terreno es prevalentemente llano. • Según la Ficha N° 6120 del Registros de predios la inmatriculación del dominio a favor del Ministerio del Interior, del terreno ubicado en el Jr. Deustua N° 536 con una extensión superficial del 3,288.25 m2. Según la Partida Registral N° 11000601, en el asiento 00001, el predio total queda reducido a un área superficial de 2, 342.93m2.
B297: 16.3 ANALISIS DE TECNOLOGÍA
B298: La Infraestructura, se plantea distribuida en 03 pisos, proyectados en material noble según la Norma Técnica de Edificaciones, E.030 DISEÑO SISMORRESISTENTE. Única Alternativa: Sobre las estructuras: El tipo de elementos estructurales será de acuerdo a la geometría y las solicitaciones de carga (estáticas y dinámicas) del proyecto, pudiendo ser estos de los siguientes tipos: pórticos de concreto armado, muros de corte y vigas, losas macizas, losas aligeradas, etc., contemplándose también, según sea el caso, tabiques de albañilería. El tipo de cimentación deberá ser definida de acuerdo a las características y resultados que se obtengan del Estudio de Mecánica de Suelos, pudiendo ser esta de los siguientes tipos: zapatas cuadradas o rectangulares aisladas (con o sin vigas de cimentación), zapatas corridas, plateas de cimentación, etc. Las dimensiones de éstos serán en función a las solicitaciones de carga correspondientes. Para la estimación del costo del proyecto se contempla la demolición total de las edificaciones y desmontaje de todos los elementos que se encuentran dentro del área intervenida, es decir: demolición de pisos, edificaciones de adobe, de material noble, desmontaje de puertas, ventanas y coberturas livianas. Sobre las instalaciones eléctricas: Actualmente, en la zona de ubicación del proyecto se cuenta con una red de energía eléctrica pública, sin embargo, deberá definirse en función a la demanda del proyecto, el tipo de suministro eléctrico a implementarse y los trabajos necesarios a incluir en el proyecto. Para cumplir con los requerimientos de las cargas a instalar se deberá realizar la implementación de un tablero general y tableros de distribución, los cuales serán ubicados de acuerdo a la distribución del sistema eléctrico y de manera tal que el control del sistema sea sectorizado. Sobre las instalaciones sanitarias: Actualmente, la zona de ubicación del proyecto cuenta con los servicios básicos de agua potable y alcantarillado. El abastecimiento de agua a los diferentes ambientes será por el sistema indirecto. Para este sistema se empleará el sistema de Cisterna + Tanque Elevado, con la capacidad necesaria para cubrir la demanda diaria. Así mismo, deberá ser provisto de las bombas de agua que sean necesarias para el óptimo funcionamiento del sistema. Las tuberías alimentadoras y de distribución serán de PVC clase 10 e irán empotradas en los muros y/o pisos según corresponda. No obstante, y a criterio del proyectista, deberá evaluarse la necesidad de incluir ductos de instalaciones sanitarias para el recorrido de las montantes de agua que pudieran haber. El sistema de abastecimiento de agua deberá ser controlado mediante válvulas, las cuales serán ubicadas según la distribución del sistema y de modo tal, que se tengan válvulas de control sectorizado y una válvula de control general. También deberá considerarse un sistema de agua caliente, con puntos en los ambientes de uso interno que sean necesarios y con sus respectivas llaves de control. Las tuberías y accesorios de agua caliente deberán ser del tipo CPVC Clase 10.
B309: 17. COSTOS DEL PROYECTO
B311: 17.1. COSTOS DE INVERSIÓN (RESUMEN DE LA CADENA DE VALOR)
B313: COSTO POR M2 DE AREA TECHADA (no incluye obras exteriores, ni preliminares) | K313: =+IF(F323=0,"",F323/E323) -> 2540.1
... 208 more rows
